bitfinex-derivatives/quotes_BTCF0:USTF0_20251228
["timestamp","ask_amount","ask_price","bid_price","bid_amount"]
[1766939896870,0.02396466,87881.0,87867.0,0.02]
[1766939897171,0.0113869,87882.0,87867.0,0.02]
[1766939897365,0.0113887,87868.0,87856.0,0.0968]
[1766939897565,0.0113887,87868.0,87857.0,0.057]
[1766939897765,0.011389,87866.0,87857.0,0.057]
[1766939898176,0.0113875,87877.0,87847.0,0.0113912]
[1766939898474,0.00017073,87871.0,87853.0,0.00017073]
[1766939898675,0.00017073,87871.0,87854.0,0.057]
[1766939898872,0.0113894,87863.0,87854.0,0.087]
[1766939901276,0.00017073,87871.0,87840.0,0.07277838]
[1766939901277,0.0113899,87858.0,87840.0,0.07277838]
[1766939901574,0.0113906,87854.0,87841.0,0.1538]
[1766939901780,0.0113906,87854.0,87841.0,0.1838]
[1766939902279,0.0113908,87852.0,87842.0,0.057]
[1766939902481,0.0113908,87852.0,87842.0,0.087]
[1766939902973,0.0113911,87850.0,87843.0,0.057]
[1766939903173,0.0113911,87850.0,87839.0,0.00017073]
[1766939903369,0.0113911,87850.0,87840.0,0.057]
[1766939903770,0.01156133,87853.0,87840.0,0.057]
[1766939908283,0.00017073,87853.0,87840.0,0.057]
[1766939908486,0.0113907,87852.0,87840.0,0.057]
[1766939908683,0.00017073,87853.0,87840.0,0.057]
[1766939909388,0.01156143,87853.0,87840.0,0.057]
[1766939918992,0.00017073,87853.0,87840.0,0.057]
[1766939919191,0.0113907,87852.0,87840.0,0.057]
[1766939919392,0.00017073,87853.0,87840.0,0.057]
[1766939929105,0.00017073,87853.0,87840.0,0.0683922]
[1766939933298,0.0242058,87852.0,87840.0,0.0683922]
[1766939933502,0.00017073,87853.0,87840.0,0.0683922]
[1766939933704,0.0242058,87852.0,87840.0,0.0683922]
[1766939933904,0.00017073,87853.0,87840.0,0.0683922]
[1766939934099,0.0968,87859.0,87845.0,0.0113915]
[1766939945626,0.1081899,87859.0,87842.0,0.0113919]
[1766939945824,0.1081899,87859.0,87844.0,0.0113917]
[1766939946125,0.02417072,87858.0,87844.0,0.0113917]
[1766939946424,0.02417072,87857.0,87844.0,0.0113917]
[1766939946625,0.08117072,87856.0,87844.0,0.0113917]
[1766939946828,0.02417072,87855.0,87844.0,0.0113917]
[1766939947023,0.02417072,87854.0,87844.0,0.0113917]
[1766939947224,0.057,87856.0,87844.0,0.0113917]
[1766939947424,0.02417058,87855.0,87844.0,0.0113917]
[1766939947619,0.02417058,87854.0,87844.0,0.0113917]
[1766939947819,0.057,87856.0,87844.0,0.0113917]
[1766939948020,0.02417053,87855.0,87844.0,0.0113917]
[1766939948223,0.02417053,87854.0,87844.0,0.0113917]
[1766939948421,0.057,87856.0,87844.0,0.0113917]
[1766939948720,0.02417036,87855.0,87844.0,0.0113917]
[1766939948920,0.02417036,87854.0,87844.0,0.0113917]
[1766939949220,0.057,87856.0,87844.0,0.0113917]
[1766939949420,0.02417043,87855.0,87844.0,0.0113917]
[1766939949622,0.02417043,87854.0,87844.0,0.0113917]
[1766939949823,0.057,87856.0,87844.0,0.0113917]
[1766939950028,0.02417041,87855.0,87844.0,0.0113917]
[1766939950235,0.02417041,87854.0,87844.0,0.0113917]
[1766939950421,0.057,87856.0,87844.0,0.0113917]
[1766939950716,0.02417042,87855.0,87844.0,0.0113917]
[1766939950918,0.02417042,87854.0,87844.0,0.0113917]
[1766939951128,0.057,87856.0,87844.0,0.0113917]
[1766939951329,0.02417044,87855.0,87844.0,0.0113917]
[1766939951528,0.02417044,87854.0,87844.0,0.0113917]
[1766939951733,0.02417044,87853.0,87844.0,0.0113917]
[1766939951918,0.02417044,87852.0,87844.0,0.0113917]
[1766939952121,0.02417044,87851.0,87844.0,0.0113917]
[1766939952327,0.057,87856.0,87844.0,0.0113917]
[1766939952528,0.02417056,87855.0,87844.0,0.0113917]
[1766939952730,0.02417056,87854.0,87844.0,0.0113917]
[1766939952930,0.02417056,87853.0,87844.0,0.0113917]
[1766939953132,0.02417056,87852.0,87844.0,0.0113917]
[1766939953326,0.02417056,87851.0,87844.0,0.0113917]
[1766939953529,0.057,87856.0,87844.0,0.0113917]
[1766939953825,0.02417075,87855.0,87844.0,0.0113917]
[1766939954025,0.02417075,87854.0,87844.0,0.0113917]
[1766939954225,0.02417075,87853.0,87844.0,0.0113917]
[1766939954526,0.02417075,87852.0,87844.0,0.0113917]
[1766939954725,0.02417075,87851.0,87844.0,0.0113917]
[1766939955030,0.057,87856.0,87844.0,0.0113917]
[1766939955230,0.02417091,87855.0,87844.0,0.0113917]
[1766939955436,0.02417091,87854.0,87844.0,0.0113917]
[1766939955622,0.02417091,87853.0,87844.0,0.0113917]
[1766939955822,0.02417091,87852.0,87844.0,0.0113917]
[1766939956024,0.02417091,87851.0,87844.0,0.0113917]
[1766939956224,0.057,87856.0,87844.0,0.0113917]
[1766939956428,0.0241713,87855.0,87844.0,0.0113917]
[1766939956632,0.0241713,87854.0,87844.0,0.0113917]
[1766939956832,0.0241713,87853.0,87844.0,0.0113917]
[1766939957032,0.0241713,87852.0,87844.0,0.0113917]
[1766939957235,0.0241713,87851.0,87844.0,0.0113917]
[1766939957535,0.057,87856.0,87844.0,0.0113917]
[1766939957731,0.02417164,87855.0,87844.0,0.0113917]
[1766939957931,0.02417164,87854.0,87844.0,0.0113917]
[1766939958131,0.02417164,87853.0,87844.0,0.0113917]
[1766939958332,0.02417164,87852.0,87844.0,0.0113917]
[1766939958536,0.02417164,87851.0,87844.0,0.0113917]
[1766939958725,0.057,87856.0,87844.0,0.0113917]
[1766939958926,0.02417193,87855.0,87844.0,0.0113917]
[1766939959131,0.02417193,87854.0,87844.0,0.0113917]
[1766939959331,0.02417193,87853.0,87844.0,0.0113917]
[1766939959630,0.02417193,87852.0,87844.0,0.0113917]
[1766939959831,0.057,87856.0,87844.0,0.0113917]
[1766939959832,0.02417193,87851.0,87844.0,0.0113917]
[1766939960033,0.02417193,87850.0,87844.0,0.0113917]
[1766939960233,0.057,87856.0,87844.0,0.0113917]
[1766939960434,0.02417264,87855.0,87844.0,0.0113917]
[1766939960634,0.02417264,87854.0,87844.0,0.0113917]
[1766939960835,0.02417264,87853.0,87844.0,0.0113917]
[1766939961027,0.02417264,87852.0,87844.0,0.0113917]
[1766939961229,0.02417264,87851.0,87844.0,0.0113917]
[1766939961429,0.02417264,87850.0,87844.0,0.0113917]
[1766939961639,0.057,87856.0,87844.0,0.0113917]
[1766939961834,0.02417327,87855.0,87844.0,0.0113917]
[1766939962035,0.02417327,87854.0,87844.0,0.0113917]
[1766939962235,0.02417327,87853.0,87844.0,0.0113917]
[1766939962437,0.057,87856.0,87841.0,0.0113921]
[1766939962637,0.0241739,87855.0,87841.0,0.0113921]
[1766939962835,0.0241739,87854.0,87841.0,0.0113921]
[1766939963039,0.0241739,87853.0,87841.0,0.0113921]
[1766939963234,0.057,87856.0,87843.0,0.0113918]
[1766939963436,0.0241752,87855.0,87843.0,0.0113918]
[1766939963637,0.0241752,87854.0,87843.0,0.0113918]
[1766939963836,0.0241752,87853.0,87843.0,0.0113918]
[1766939964042,0.057,87856.0,87843.0,0.0113918]
[1766939964230,0.02414277,87855.0,87843.0,0.0113918]
[1766939964430,0.02414277,87854.0,87843.0,0.0113918]
[1766939964629,0.02414277,87853.0,87843.0,0.0113918]
[1766939964836,0.057,87856.0,87843.0,0.0113918]
[1766939965037,0.02414829,87855.0,87843.0,0.0113918]
[1766939965239,0.02414829,87854.0,87843.0,0.0113918]
[1766939965438,0.02414829,87853.0,87843.0,0.0113918]
[1766939965634,0.057,87856.0,87843.0,0.0113918]
[1766939965834,0.0241498,87855.0,87843.0,0.0113918]
[1766939966042,0.0241498,87854.0,87843.0,0.0113918]
[1766939966244,0.0241498,87853.0,87843.0,0.0113918]
[1766939966443,0.057,87856.0,87843.0,0.0113918]
[1766939966743,0.0241511,87855.0,87843.0,0.0113918]
[1766939966943,0.0241511,87854.0,87843.0,0.0113918]
[1766939967243,0.0241511,87853.0,87843.0,0.0113918]
[1766939967444,0.057,87856.0,87843.0,0.0113918]
[1766939967637,0.02415488,87855.0,87843.0,0.0113918]
[1766939967844,0.02415488,87854.0,87843.0,0.0113918]
[1766939968046,0.02415488,87853.0,87843.0,0.0113918]
[1766939968250,0.057,87856.0,87843.0,0.0113918]
[1766939968447,0.0241549,87855.0,87843.0,0.0113918]
[1766939968747,0.0241549,87854.0,87843.0,0.0113918]
[1766939968949,0.0241549,87853.0,87843.0,0.0113918]
[1766939969149,0.057,87856.0,87843.0,0.0113918]
[1766939969447,0.0241549,87855.0,87843.0,0.0113918]
[1766939969647,0.0241549,87854.0,87843.0,0.0113918]
[1766939969837,0.0241549,87853.0,87843.0,0.0113918]
[1766939970040,0.057,87856.0,87843.0,0.0113918]
[1766939970241,0.02415489,87855.0,87843.0,0.0113918]
[1766939970441,0.02415489,87854.0,87843.0,0.0113918]
[1766939970741,0.02415489,87853.0,87843.0,0.0113918]
[1766939971038,0.057,87856.0,87843.0,0.0113918]
[1766939971238,0.02415477,87855.0,87843.0,0.0113918]
[1766939971447,0.02415477,87854.0,87843.0,0.0113918]
[1766939971745,0.02415477,87853.0,87843.0,0.0113918]
[1766939971945,0.057,87856.0,87843.0,0.0113918]
[1766939972246,0.02415479,87855.0,87843.0,0.0113918]
[1766939972446,0.02415479,87854.0,87843.0,0.0113918]
[1766939972648,0.02415479,87853.0,87843.0,0.0113918]
[1766939972849,0.057,87856.0,87843.0,0.0113918]
[1766939973051,0.02415467,87855.0,87840.0,0.057]
[1766939973246,0.02415467,87854.0,87840.0,0.087]
[1766939973447,0.02415467,87853.0,87840.0,0.057]
[1766939973752,0.057,87856.0,87840.0,0.057]
[1766939973951,0.02415466,87855.0,87840.0,0.057]
[1766939974150,0.02415466,87854.0,87840.0,0.057]
[1766939974349,0.02415466,87853.0,87840.0,0.057]
[1766939974650,0.057,87856.0,87843.0,0.0113918]
[1766939974850,0.02415465,87855.0,87843.0,0.0113918]
[1766939975052,0.02415465,87854.0,87843.0,0.0113918]
[1766939975248,0.02415465,87853.0,87843.0,0.0113918]
[1766939975448,0.057,87856.0,87843.0,0.0113918]
[1766939975650,0.02415464,87855.0,87843.0,0.0113918]
[1766939975953,0.02415464,87854.0,87843.0,0.0113918]
[1766939976153,0.02415464,87853.0,87843.0,0.0113918]
[1766939976354,0.057,87856.0,87843.0,0.0113918]
[1766939976657,0.02415466,87855.0,87843.0,0.0113918]
[1766939976853,0.02415466,87854.0,87840.0,0.057]
[1766939977051,0.02415466,87853.0,87840.0,0.057]
[1766939977253,0.057,87856.0,87840.0,0.057]
[1766939977452,0.02415467,87855.0,87840.0,0.057]
[1766939977654,0.02415467,87854.0,87840.0,0.057]
[1766939977857,0.02415467,87853.0,87840.0,0.057]
[1766939978048,0.057,87856.0,87840.0,0.057]
[1766939978249,0.02415467,87855.0,87842.0,0.0113919]
[1766939978450,0.02415467,87854.0,87842.0,0.0113919]
[1766939978750,0.02415467,87853.0,87842.0,0.0113919]
[1766939978947,0.057,87856.0,87842.0,0.0113919]
[1766939979150,0.02415468,87855.0,87842.0,0.0113919]
[1766939979359,0.02415468,87854.0,87842.0,0.0113919]
[1766939979551,0.02415468,87853.0,87842.0,0.0113919]
[1766939979752,0.057,87856.0,87842.0,0.0113919]
[1766939980059,0.02415468,87855.0,87842.0,0.0113919]
[1766939980252,0.02415468,87854.0,87842.0,0.0113919]
[1766939980452,0.02415468,87853.0,87842.0,0.0113919]
[1766939980653,0.057,87856.0,87842.0,0.0113919]
[1766939980853,0.02415471,87855.0,87842.0,0.0113919]
[1766939981053,0.02415471,87854.0,87842.0,0.0113919]
[1766939981352,0.02415471,87853.0,87842.0,0.0113919]
[1766939981552,0.057,87856.0,87842.0,0.0113919]
[1766939981759,0.02415474,87855.0,87842.0,0.0113919]
[1766939982056,0.02415474,87854.0,87842.0,0.0113919]
[1766939982248,0.02415474,87853.0,87842.0,0.0113919]
[1766939982452,0.057,87856.0,87842.0,0.0113919]
[1766939982653,0.0241547,87855.0,87842.0,0.0113919]
[1766939982853,0.0241547,87854.0,87842.0,0.0113919]
[1766939983054,0.0241547,87853.0,87842.0,0.0113919]
[1766939983253,0.057,87856.0,87842.0,0.0113919]
[1766939983455,0.02415476,87855.0,87842.0,0.0113919]
[1766939983654,0.02415476,87854.0,87842.0,0.0113919]
[1766939983855,0.02415476,87853.0,87842.0,0.0113919]
[1766939984055,0.057,87856.0,87842.0,0.0113919]
[1766939984257,0.02415474,87855.0,87842.0,0.0113919]
[1766939984557,0.02415474,87854.0,87842.0,0.0113919]
[1766939984756,0.02415474,87853.0,87842.0,0.0113919]
[1766939985057,0.057,87856.0,87842.0,0.0113919]
[1766939985260,0.02415413,87855.0,87842.0,0.0113919]
[1766939985460,0.02415413,87854.0,87842.0,0.0113919]
[1766939985666,0.02415413,87853.0,87842.0,0.0113919]
[1766939985961,0.057,87856.0,87842.0,0.0113919]
[1766939986154,0.02415418,87855.0,87842.0,0.0113919]
[1766939986353,0.02415418,87854.0,87842.0,0.0113919]
[1766939986554,0.02415418,87853.0,87842.0,0.0113919]
[1766939986761,0.057,87856.0,87842.0,0.0113919]
[1766939987062,0.02415416,87855.0,87842.0,0.0113919]
[1766939987254,0.02415416,87854.0,87842.0,0.0113919]
[1766939987454,0.02415416,87853.0,87842.0,0.0113919]
[1766939987654,0.057,87856.0,87842.0,0.0113919]
[1766939987854,0.02415421,87855.0,87842.0,0.0113919]
[1766939988064,0.02415421,87854.0,87842.0,0.0113919]
[1766939988361,0.02415421,87853.0,87842.0,0.0113919]
[1766939988562,0.057,87856.0,87842.0,0.0113919]
[1766939988860,0.02415421,87855.0,87842.0,0.0113919]
[1766939989062,0.02415421,87854.0,87842.0,0.0113919]
[1766939989254,0.02415421,87853.0,87842.0,0.0113919]
[1766939989566,0.057,87856.0,87842.0,0.0113919]
[1766939989764,0.02415443,87855.0,87842.0,0.0113919]
[1766939989965,0.02415443,87854.0,87842.0,0.0113919]
[1766939990265,0.02415443,87853.0,87842.0,0.0113919]
[1766939990563,0.057,87856.0,87842.0,0.0113919]
[1766939990762,0.02415447,87855.0,87842.0,0.0113919]
[1766939990963,0.02415447,87854.0,87842.0,0.0113919]
[1766939991165,0.02415447,87853.0,87842.0,0.0113919]
[1766939991362,0.057,87856.0,87842.0,0.0113919]
[1766939991564,0.02415537,87855.0,87842.0,0.0113919]
[1766939991765,0.02415537,87854.0,87842.0,0.0113919]
[1766939991964,0.02415537,87853.0,87842.0,0.0113919]
[1766939992166,0.057,87856.0,87842.0,0.0113919]
[1766939992365,0.02415539,87855.0,87842.0,0.0113919]
[1766939992562,0.02415539,87854.0,87842.0,0.0113919]
[1766939992764,0.02415539,87853.0,87842.0,0.0113919]
[1766939993063,0.057,87856.0,87842.0,0.0113919]
[1766939993264,0.02415697,87855.0,87842.0,0.0113919]
[1766939993465,0.02415697,87854.0,87842.0,0.0113919]
[1766939993670,0.02415697,87853.0,87842.0,0.0113919]
[1766939993869,0.057,87856.0,87842.0,0.0113919]
[1766939994070,0.02411057,87855.0,87842.0,0.0113919]
[1766939994371,0.02411057,87854.0,87842.0,0.0113919]
[1766939994669,0.02411057,87853.0,87842.0,0.0113919]
[1766939994868,0.057,87856.0,87842.0,0.0113919]
[1766939995074,0.02411058,87855.0,87842.0,0.0113919]
[1766939995267,0.02411058,87854.0,87842.0,0.0113919]
[1766939995466,0.02411058,87853.0,87842.0,0.0113919]
[1766939995664,0.057,87856.0,87842.0,0.0113919]
[1766939995865,0.02411064,87855.0,87842.0,0.0113919]
[1766939996074,0.02411064,87854.0,87842.0,0.0113919]
[1766939996274,0.02411064,87853.0,87842.0,0.0113919]
[1766939996470,0.057,87856.0,87842.0,0.0113919]
[1766939996671,0.02411069,87855.0,87842.0,0.0113919]
[1766939996871,0.02411069,87854.0,87842.0,0.0113919]
[1766939997171,0.02411069,87853.0,87842.0,0.0113919]
[1766939997370,0.057,87856.0,87842.0,0.0113919]
[1766939997568,0.02411065,87855.0,87842.0,0.0113919]
[1766939997777,0.02411065,87854.0,87842.0,0.0113919]
[1766939998073,0.02411065,87853.0,87842.0,0.0113919]
[1766939998275,0.057,87856.0,87842.0,0.0113919]
[1766939998572,0.02411071,87855.0,87842.0,0.0113919]
[1766939998772,0.02411071,87854.0,87842.0,0.0113919]
[1766939999071,0.02411071,87853.0,87842.0,0.0113919]
[1766939999268,0.057,87856.0,87842.0,0.0113919]
[1766939999572,0.0241113,87855.0,87842.0,0.0113919]
[1766939999774,0.0241113,87854.0,87842.0,0.0113919]
[1766940000072,0.0241113,87853.0,87842.0,0.0113919]
[1766940000274,0.057,87856.0,87842.0,0.0113919]
[1766940000475,0.0241206,87855.0,87842.0,0.0113919]
[1766940000773,0.0241206,87854.0,87842.0,0.0113919]
[1766940000975,0.0241206,87853.0,87842.0,0.0113919]
[1766940001163,0.057,87856.0,87842.0,0.0113919]
[1766940001362,0.02412182,87855.0,87842.0,0.0113919]
[1766940001570,0.02412182,87854.0,87842.0,0.0113919]
[1766940001771,0.02412182,87853.0,87842.0,0.0113919]
[1766940001967,0.0198503,87852.0,87844.0,0.0113916]
[1766940002170,0.1538,87859.0,87844.0,0.03]
[1766940002376,0.057,87859.0,87850.0,0.0113909]
[1766940002576,0.057,87859.0,87852.0,0.0113906]
[1766940002971,0.00017073,87861.0,87852.0,0.0113906]
[1766940012699,0.00017073,87861.0,87849.0,0.011391]
[1766940014097,0.02410124,87860.0,87849.0,0.011391]
[1766940014300,0.02410124,87859.0,87849.0,0.011391]
[1766940014497,0.02410124,87858.0,87849.0,0.011391]
[1766940014698,0.02410124,87857.0,87849.0,0.011391]
[1766940014897,0.02410124,87856.0,87849.0,0.011391]
[1766940015097,0.02410124,87855.0,87849.0,0.011391]
[1766940015298,0.00017073,87861.0,87849.0,0.011391]
[1766940015496,0.02410095,87860.0,87849.0,0.011391]
[1766940015794,0.02410095,87859.0,87849.0,0.011391]
[1766940016096,0.02410095,87858.0,87849.0,0.011391]
[1766940016288,0.02410095,87857.0,87849.0,0.011391]
[1766940016488,0.02410095,87856.0,87849.0,0.011391]
[1766940016700,0.02410095,87855.0,87849.0,0.011391]
[1766940016904,0.00017073,87861.0,87849.0,0.011391]
[1766940017101,0.02410092,87860.0,87849.0,0.011391]
[1766940017299,0.02410092,87859.0,87849.0,0.011391]
[1766940017500,0.02410092,87858.0,87849.0,0.011391]
[1766940017800,0.02410092,87857.0,87849.0,0.011391]
[1766940018001,0.02410092,87856.0,87849.0,0.011391]
[1766940018193,0.02410092,87855.0,87849.0,0.011391]
[1766940018391,0.00017073,87861.0,87849.0,0.011391]
[1766940018595,0.0241009,87860.0,87849.0,0.011391]
[1766940018792,0.0241009,87859.0,87849.0,0.011391]
[1766940018990,0.0241009,87858.0,87849.0,0.011391]
[1766940019201,0.0241009,87857.0,87849.0,0.011391]
[1766940019391,0.0241009,87856.0,87849.0,0.011391]
[1766940019588,0.0241009,87855.0,87849.0,0.011391]
[1766940019794,0.00017073,87861.0,87849.0,0.011391]
[1766940019996,0.02410072,87860.0,87849.0,0.011391]
[1766940020192,0.02410072,87859.0,87849.0,0.011391]
[1766940020393,0.02410072,87858.0,87849.0,0.011391]
[1766940020593,0.02410072,87857.0,87849.0,0.011391]
[1766940020795,0.02410072,87856.0,87849.0,0.011391]
[1766940020991,0.02410072,87855.0,87849.0,0.011391]
[1766940021192,0.00017073,87861.0,87849.0,0.011391]
[1766940021396,0.02410078,87860.0,87849.0,0.011391]
[1766940021603,0.02410078,87859.0,87849.0,0.041391]
[1766940021798,0.02410078,87858.0,87849.0,0.041391]
[1766940021994,0.02410078,87857.0,87849.0,0.011391]
[1766940022203,0.02410078,87856.0,87849.0,0.011391]
[1766940022401,0.02410078,87855.0,87849.0,0.011391]
[1766940022704,0.00017073,87861.0,87849.0,0.011391]
[1766940022900,0.02410099,87860.0,87849.0,0.011391]
[1766940023102,0.02410099,87859.0,87849.0,0.011391]
[1766940023404,0.02410099,87858.0,87849.0,0.011391]
[1766940023602,0.02410099,87857.0,87849.0,0.011391]
[1766940023806,0.02410099,87856.0,87849.0,0.011391]
[1766940024007,0.02410099,87855.0,87849.0,0.011391]
[1766940024307,0.00017073,87861.0,87849.0,0.011391]
[1766940024510,0.02410355,87860.0,87849.0,0.011391]
[1766940024708,0.02410355,87859.0,87849.0,0.011391]
[1766940025009,0.02410355,87858.0,87849.0,0.011391]
[1766940025205,0.02410355,87857.0,87849.0,0.011391]
[1766940025404,0.02410355,87856.0,87849.0,0.011391]
[1766940025604,0.02410355,87855.0,87849.0,0.011391]
[1766940025806,0.00017073,87861.0,87849.0,0.011391]
[1766940026010,0.02410165,87860.0,87849.0,0.011391]
[1766940026204,0.02410165,87859.0,87849.0,0.011391]
[1766940026403,0.02410165,87858.0,87849.0,0.011391]
[1766940026604,0.02410165,87857.0,87849.0,0.011391]
[1766940026806,0.02410165,87856.0,87849.0,0.011391]
[1766940027004,0.02410165,87855.0,87849.0,0.011391]
[1766940027306,0.00017073,87861.0,87849.0,0.011391]
[1766940027504,0.02410031,87860.0,87849.0,0.011391]
[1766940027705,0.02410031,87859.0,87849.0,0.011391]
[1766940027911,0.02410031,87858.0,87849.0,0.011391]
[1766940028109,0.02410031,87857.0,87849.0,0.011391]
[1766940028309,0.02410031,87856.0,87849.0,0.011391]
[1766940028512,0.02410031,87855.0,87849.0,0.011391]
[1766940028711,0.00017073,87861.0,87849.0,0.011391]
[1766940028912,0.02410028,87860.0,87849.0,0.011391]
[1766940029111,0.02410028,87859.0,87849.0,0.011391]
[1766940029308,0.02410028,87858.0,87849.0,0.011391]
[1766940029507,0.02410028,87857.0,87849.0,0.011391]
[1766940029708,0.02410028,87856.0,87849.0,0.011391]
[1766940029912,0.02410028,87855.0,87849.0,0.011391]
[1766940030212,0.00017073,87861.0,87849.0,0.011391]
[1766940030512,0.02410072,87860.0,87849.0,0.011391]
[1766940030709,0.02410072,87859.0,87849.0,0.011391]
[1766940030907,0.00017073,87861.0,87849.0,0.011391]
[1766940030908,0.02410072,87858.0,87849.0,0.011391]
[1766940031111,0.02410072,87857.0,87849.0,0.011391]
[1766940031307,0.02410072,87856.0,87849.0,0.011391]
[1766940031606,0.02410072,87855.0,87849.0,0.011391]
[1766940031806,0.00017073,87861.0,87849.0,0.011391]
[1766940032007,0.02410122,87860.0,87849.0,0.011391]
[1766940032208,0.02410122,87859.0,87849.0,0.011391]
[1766940032515,0.02410122,87858.0,87849.0,0.011391]
[1766940032815,0.02410122,87857.0,87849.0,0.011391]
[1766940033013,0.02410122,87856.0,87849.0,0.011391]
[1766940033210,0.02410122,87855.0,87849.0,0.011391]
[1766940033410,0.00017073,87861.0,87849.0,0.011391]
[1766940033612,0.02409754,87860.0,87849.0,0.011391]
[1766940033812,0.02409754,87859.0,87849.0,0.011391]
[1766940034013,0.02409754,87858.0,87849.0,0.011391]
[1766940034313,0.02409754,87857.0,87849.0,0.011391]
[1766940034513,0.02409754,87856.0,87849.0,0.011391]
[1766940034813,0.02409754,87855.0,87849.0,0.011391]
[1766940035013,0.00017073,87861.0,87849.0,0.011391]
[1766940035214,0.0240979,87860.0,87849.0,0.011391]
[1766940035417,0.0240979,87859.0,87849.0,0.011391]
[1766940035617,0.0240979,87858.0,87849.0,0.011391]
[1766940035817,0.0240979,87857.0,87849.0,0.011391]
[1766940036010,0.0240979,87856.0,87849.0,0.011391]
[1766940036214,0.0240979,87855.0,87849.0,0.011391]
[1766940036412,0.00017073,87861.0,87849.0,0.011391]
[1766940036613,0.02409797,87860.0,87849.0,0.011391]
[1766940036813,0.02409797,87859.0,87849.0,0.011391]
[1766940037007,0.02409797,87858.0,87849.0,0.011391]
[1766940037310,0.02409797,87857.0,87849.0,0.011391]
[1766940037510,0.02409797,87856.0,87849.0,0.011391]
[1766940037716,0.02409797,87855.0,87849.0,0.011391]
[1766940038019,0.00017073,87861.0,87849.0,0.011391]
[1766940038210,0.02409803,87860.0,87849.0,0.011391]
[1766940038412,0.02409803,87859.0,87849.0,0.011391]
[1766940038613,0.02409803,87858.0,87849.0,0.011391]
[1766940038913,0.02409803,87857.0,87849.0,0.011391]
[1766940039114,0.02409803,87856.0,87849.0,0.011391]
[1766940039315,0.02409803,87855.0,87849.0,0.011391]
[1766940039514,0.00017073,87861.0,87849.0,0.011391]
[1766940039714,0.02409809,87860.0,87849.0,0.011391]
[1766940039918,0.02409809,87859.0,87849.0,0.011391]
[1766940040120,0.02409809,87858.0,87849.0,0.011391]
[1766940040318,0.02409809,87857.0,87849.0,0.011391]
[1766940040616,0.02409809,87856.0,87849.0,0.011391]
[1766940040911,0.02409809,87855.0,87849.0,0.011391]
[1766940041116,0.00017073,87861.0,87849.0,0.011391]
[1766940041316,0.02409805,87860.0,87849.0,0.011391]
[1766940041517,0.02409805,87859.0,87849.0,0.011391]
[1766940041725,0.02409805,87858.0,87849.0,0.011391]
[1766940042026,0.02409805,87857.0,87849.0,0.011391]
[1766940042224,0.02409805,87856.0,87849.0,0.011391]
[1766940042425,0.02409805,87855.0,87849.0,0.011391]
[1766940042629,0.00017073,87861.0,87849.0,0.011391]
[1766940042926,0.02409808,87860.0,87849.0,0.011391]
[1766940043124,0.02409808,87859.0,87849.0,0.011391]
[1766940043318,0.02409808,87858.0,87849.0,0.011391]
[1766940043520,0.02409808,87857.0,87849.0,0.011391]
[1766940043720,0.02409808,87856.0,87849.0,0.011391]
[1766940043919,0.02409808,87855.0,87849.0,0.011391]
[1766940044121,0.00017073,87861.0,87849.0,0.011391]
[1766940044328,0.02409821,87860.0,87849.0,0.011391]
[1766940044626,0.02409821,87859.0,87849.0,0.011391]
[1766940044821,0.02409821,87858.0,87849.0,0.011391]
[1766940045022,0.02409821,87857.0,87849.0,0.011391]
[1766940045222,0.02409832,87856.0,87849.0,0.011391]
[1766940045431,0.02409832,87855.0,87849.0,0.011391]
[1766940045623,0.00017073,87861.0,87849.0,0.011391]
[1766940045922,0.02409832,87860.0,87849.0,0.011391]
[1766940046229,0.02409832,87859.0,87851.0,0.0113908]
[1766940046426,0.02409832,87858.0,87851.0,0.0113908]
[1766940046626,0.02409832,87857.0,87851.0,0.0113908]
[1766940046827,2e-08,87856.0,87848.0,0.057]
[1766940047123,0.00017073,87861.0,87853.0,0.0113905]
[1766940047722,0.09684,87868.0,87853.0,0.0113905]
[1766940051632,0.15800159,87868.0,87853.0,0.0113905]
[1766940053725,0.16939029,87868.0,87850.0,0.0113909]
[1766940055434,0.16939029,87868.0,87852.0,0.0113906]
[1766940056138,0.15800159,87868.0,87852.0,0.0113906]
[1766940057939,0.057,87867.0,87852.0,0.0113906]
[1766940058738,0.02397988,87866.0,87852.0,0.0113906]
[1766940059036,0.02397988,87865.0,87852.0,0.0113906]
[1766940059238,0.02397988,87864.0,87852.0,0.0113906]
[1766940059538,0.02397988,87863.0,87852.0,0.0113906]
[1766940059730,0.02397988,87862.0,87852.0,0.0113906]
[1766940059929,0.02397988,87861.0,87852.0,0.0113906]
[1766940060140,0.02397988,87860.0,87852.0,0.0113906]
[1766940060338,0.02397988,87859.0,87852.0,0.0113906]
[1766940060528,0.02397988,87858.0,87852.0,0.0113906]
[1766940060729,0.02397988,87857.0,87852.0,0.0113906]
[1766940060932,8e-08,87856.0,87852.0,0.0113906]
[1766940061130,0.057,87867.0,87852.0,0.0113906]
[1766940064037,0.057,87867.0,87848.0,0.057]
[1766940064341,0.057,87870.0,87858.0,0.0113899]
[1766940064531,0.057,87870.0,87855.0,0.00017073]
[1766940064726,0.057,87870.0,87855.0,0.03017073]
[1766940065041,0.057,87870.0,87858.0,0.0113899]
[1766940066641,0.057,87870.0,87855.0,0.00017073]
[1766940068131,0.011388,87874.0,87855.0,0.03017073]
[1766940068336,0.0113875,87878.0,87856.0,0.09684]
[1766940068734,0.0113875,87878.0,87856.0,0.12684]
[1766940068929,0.0113875,87878.0,87856.0,0.09684]
[1766940069338,0.0113875,87878.0,87860.0,0.0113896]
[1766940069642,0.0113875,87878.0,87860.0,0.0413896]
[1766940069833,0.0113875,87878.0,87860.0,0.0113896]
[1766940071039,0.057,87881.0,87859.0,0.057]
[1766940071238,0.0113872,87879.0,87859.0,0.057]
[1766940072939,0.0113872,87879.0,87860.0,0.0113896]
[1766940081363,0.0113872,87879.0,87862.0,0.0113893]
[1766940081559,0.0113871,87880.0,87859.0,0.057]
[1766940081761,0.0113871,87880.0,87859.0,0.087]
[1766940081956,0.0113871,87880.0,87859.0,0.057]
[1766940082856,0.0113871,87880.0,87859.0,0.087]
[1766940083061,0.0113871,87880.0,87859.0,0.057]
[1766940083262,0.0113871,87880.0,87863.0,0.0113892]
[1766940085368,0.0113871,87880.0,87860.0,0.0113896]
[1766940085767,0.0113874,87878.0,87860.0,0.0113896]
[1766940086575,0.0113874,87878.0,87863.0,0.1]
[1766940088274,0.0113878,87875.0,87863.0,0.1]
[1766940098572,0.0113881,87873.0,87863.0,0.1]
[1766940106288,0.0113881,87873.0,87864.0,0.057]
[1766940112390,0.0113877,87876.0,87864.0,0.057]